bitfinex/quotes_BTCUSD_20230106
["timestamp","ask_amount","ask_price","bid_price","bid_amount"]
[1673033530906,0.58749193,16883.0,16882.0,20.75473954]
[1673033540247,0.58749193,16883.0,16882.0,21.78519731]
[1673033540467,0.58749193,16883.0,16882.0,21.95673154]
[1673033540974,0.58749193,16883.0,16882.0,21.34708554]
[1673033541826,0.05391082,16883.0,16882.0,21.78525849]
[1673033542070,0.05391082,16883.0,16882.0,22.39490449]
[1673033545705,0.49834516,16883.0,16882.0,22.39490449]
[1673033546208,0.05391082,16883.0,16882.0,22.39490449]
[1673033546695,0.49833562,16883.0,16882.0,22.39490449]
[1673033546989,0.05391082,16883.0,16882.0,22.39490449]
[1673033547251,0.05391082,16883.0,16882.0,21.95673154]
[1673033547776,0.49830871,16883.0,16882.0,22.39482332]
[1673033548037,0.54369321,16884.0,16882.0,21.33608554]
[1673033548283,0.004,16883.0,16882.0,21.28229696]
[1673033548539,0.004,16883.0,16882.0,20.84420841]
[1673033548794,0.004,16883.0,16882.0,21.28225082]
[1673033548795,0.44838827,16883.0,16882.0,21.28225082]
[1673033549045,0.44838827,16883.0,16882.0,20.9626349]
[1673033549308,0.44438827,16883.0,16882.0,21.55102876]
[1673033549550,0.44438827,16883.0,16882.0,21.57902876]
[1673033549807,0.44438827,16883.0,16882.0,22.14490589]
[1673033550065,0.44838827,16883.0,16882.0,22.85655189]
[1673033550574,0.44838827,16883.0,16882.0,22.41850948]
[1673033551332,0.80384965,16883.0,16882.0,22.41850948]
[1673033551586,0.44838827,16883.0,16882.0,22.41843396]
[1673033551831,0.80382474,16883.0,16882.0,22.41843396]
[1673033552593,0.80382474,16883.0,16882.0,22.8564164]
[1673033552845,0.80382474,16883.0,16882.0,22.41843396]
[1673033553527,0.44838827,16883.0,16882.0,21.80878796]
[1673033553776,0.80380707,16883.0,16882.0,21.80878796]
[1673033554282,0.62597023,16883.0,16882.0,22.22752319]
[1673033555819,0.44821946,16883.0,16882.0,21.55633376]
[1673033556074,0.18166803,16883.0,16882.0,22.41605787]
[1673033556340,0.18166803,16883.0,16882.0,23.02570387]
[1673033557505,0.18166803,16883.0,16882.0,22.72570387]
[1673033557506,0.44821946,16883.0,16882.0,22.72570387]
[1673033558349,0.44821946,16883.0,16882.0,22.11605787]
[1673033558603,0.44821946,16883.0,16882.0,21.55633376]
[1673033558879,0.44821946,16883.0,16882.0,22.24141772]
[1673033559805,0.18166803,16883.0,16882.0,21.85633376]
[1673033560325,0.18166803,16883.0,16882.0,22.40522499]
[1673033560582,0.18166803,16883.0,16882.0,22.10522499]
[1673033561304,0.18166803,16883.0,16882.0,21.55633376]
[1673033561828,0.18166803,16883.0,16882.0,22.49080576]
[1673033562079,0.18166803,16883.0,16882.0,23.09947638]
[1673033562333,0.18166803,16883.0,16882.0,22.46597976]
[1673033562586,0.004,16883.0,16882.0,22.46597976]
[1673033562810,0.004,16883.0,16882.0,21.85633376]
[1673033563066,0.18166803,16883.0,16882.0,22.55633376]
[1673033563349,0.004,16883.0,16882.0,22.55633376]
[1673033563617,0.00388265,16883.0,16882.0,23.16597976]
[1673033565106,0.18155068,16883.0,16882.0,23.16597976]
[1673033565394,0.00388265,16883.0,16882.0,23.16597976]
[1673033565659,0.18155068,16883.0,16882.0,23.16597976]
[1673033565877,0.00388265,16883.0,16882.0,23.16597976]
[1673033568176,0.00388265,16883.0,16882.0,23.72260275]
[1673033568397,0.00388265,16883.0,16882.0,23.16597976]
[1673033568875,0.00388265,16883.0,16882.0,23.81913312]
[1673033569127,0.00388265,16883.0,16882.0,22.46597976]
[1673033569390,0.00388265,16883.0,16882.0,22.36404472]
[1673033569893,0.00388265,16883.0,16882.0,21.85633376]
[1673033570154,0.00388265,16883.0,16882.0,22.55633376]
[1673033570641,0.00388265,16883.0,16882.0,23.22076278]
[1673033570870,0.00388265,16883.0,16882.0,23.16597976]
[1673033571124,0.00388265,16883.0,16882.0,23.18335089]
[1673033571354,0.00388265,16883.0,16882.0,23.79299689]
[1673033571578,0.00388265,16883.0,16882.0,23.09299689]
[1673033571816,0.18155068,16883.0,16882.0,22.48335089]
[1673033572286,0.00388265,16883.0,16882.0,22.48335089]
[1673033573846,0.00388265,16883.0,16882.0,21.85633376]
[1673033575122,0.00388265,16883.0,16882.0,22.55842097]
[1673033575657,0.00388265,16883.0,16882.0,21.85633376]
[1673033575952,0.00388265,16883.0,16882.0,22.55633376]
[1673033576203,0.00388265,16883.0,16882.0,23.06207926]
[1673033576466,0.00388265,16883.0,16882.0,23.67172526]
[1673033576763,0.00388265,16883.0,16882.0,23.16597976]
[1673033576992,0.00388265,16883.0,16882.0,23.86974598]
[1673033577465,0.00388265,16883.0,16882.0,23.16597976]
[1673033578288,0.00388265,16883.0,16882.0,23.71401726]
[1673033578525,0.00388265,16883.0,16882.0,23.16597976]
[1673033578790,0.00388265,16883.0,16882.0,23.87453958]
[1673033579299,0.00388265,16883.0,16882.0,23.16597976]
[1673033579564,0.00388265,16883.0,16882.0,23.2016191]
[1673033580086,0.00388265,16883.0,16882.0,23.16597976]
[1673033580671,0.00388265,16883.0,16882.0,23.2016191]
[1673033581628,0.00388265,16883.0,16882.0,23.16597976]
[1673033582377,0.00388265,16883.0,16882.0,23.2016191]
[1673033582622,0.00388265,16883.0,16882.0,23.16597976]
[1673033582872,0.0101121,16884.0,16883.0,0.4]
[1673033583124,0.0101121,16884.0,16883.0,4.87147795]
[1673033583888,0.0101121,16884.0,16883.0,5.48935624]
[1673033584155,0.0111121,16884.0,16883.0,5.51935624]
[1673033584400,0.0111121,16884.0,16883.0,4.96384719]
[1673033584657,0.0111121,16884.0,16883.0,5.49650739]
[1673033584912,0.0111121,16884.0,16883.0,5.54426242]
[1673033585414,0.0111121,16884.0,16883.0,4.96384719]
[1673033586702,0.0111121,16884.0,16883.0,4.96390719]
[1673033587971,0.0111121,16884.0,16883.0,5.65704321]
[1673033589929,0.0111121,16884.0,16883.0,5.52562425]
[1673033590186,0.18878013,16884.0,16883.0,4.78688683]
[1673033590437,0.18878013,16884.0,16883.0,4.61088683]
[1673033591212,0.18878013,16884.0,16883.0,5.04911293]
[1673033591727,0.18878013,16884.0,16883.0,4.34905293]
[1673033593260,0.45533156,16884.0,16883.0,4.34905293]
[1673033597851,0.62808233,16884.0,16883.0,4.34905293]
[1673033599555,1.0724706,16884.0,16883.0,4.34905293]
[1673033599772,0.62808233,16884.0,16883.0,4.34905293]
[1673033600031,0.80591917,16884.0,16883.0,4.34905293]
[1673033600553,0.80591917,16884.0,16883.0,3.73940693]
[1673033603039,0.45050037,16884.0,16883.0,3.73940693]
[1673033603294,0.45050037,16884.0,16883.0,4.34905293]
[1673033603571,0.45050037,16884.0,16883.0,2.57211993]
[1673033603829,0.80586197,16884.0,16883.0,3.14709593]
[1673033604342,0.80586197,16884.0,16883.0,3.73940693]
[1673033604589,0.45050037,16884.0,16883.0,4.34905293]
[1673033604839,0.80585107,16884.0,16883.0,4.34905293]
[1673033605117,0.45050037,16884.0,16883.0,4.34905293]
[1673033606292,0.80582895,16884.0,16883.0,4.34905293]
[1673033607561,0.45050037,16884.0,16883.0,4.34905293]
[1673033610389,0.45050037,16884.0,16883.0,3.73940693]
[1673033611391,0.45050037,16884.0,16883.0,4.34905293]
[1673033613233,0.45050037,16884.0,16883.0,3.73940693]
[1673033613751,0.80572418,16884.0,16883.0,3.73940693]
[1673033616155,0.80572418,16884.0,16883.0,4.34905293]
[1673033617929,0.80572418,16884.0,16883.0,3.73940693]
[1673033620152,0.80572418,16884.0,16883.0,3.7393194]
[1673033621475,0.45080159,16884.0,16883.0,2.73937624]
[1673033621721,0.84110332,16884.0,16883.0,1.27699124]
[1673033621986,0.0061121,16884.0,16883.0,1.27699124]
[1673033622239,0.0061121,16884.0,16883.0,1.67699124]
[1673033622781,0.0061121,16884.0,16883.0,2.27086837]
[1673033623819,0.0061121,16884.0,16883.0,2.75499331]
[1673033625090,0.0061121,16884.0,16883.0,2.75536755]
[1673033625860,0.45015626,16884.0,16883.0,2.75536755]
[1673033626106,0.0061121,16884.0,16883.0,2.75536755]
[1673033626588,0.45015541,16884.0,16883.0,2.75536755]
[1673033628493,0.45015541,16884.0,16883.0,3.33067789]
[1673033628774,0.80543924,16884.0,16883.0,3.92298889]
[1673033632993,0.62793228,16884.0,16883.0,3.92298889]
[1673033633260,0.62793228,16884.0,16883.0,3.82367855]
[1673033633261,0.4503512,16884.0,16883.0,3.82367855]
[1673033633513,0.4503512,16884.0,16883.0,4.47631296]
[1673033633770,0.4503512,16884.0,16883.0,5.08595896]
[1673033635027,0.4503512,16884.0,16883.0,4.43332455]
[1673033635307,0.4503512,16884.0,16883.0,4.46896389]
[1673033635568,0.18381485,16884.0,16883.0,4.46896389]
[1673033636078,0.18381485,16884.0,16883.0,5.13621724]
[1673033636323,0.18381485,16884.0,16883.0,5.16896389]
[1673033636599,0.18411607,16884.0,16883.0,5.44434183]
[1673033636830,0.4503512,16884.0,16883.0,5.40870249]
[1673033637074,0.62793228,16884.0,16883.0,5.40870249]
[1673033637318,0.62793228,16884.0,16883.0,4.70870249]
[1673033638807,0.62793228,16884.0,16883.0,5.00870249]
[1673033638808,0.45034976,16884.0,16883.0,5.00870249]
[1673033639313,0.45034976,16884.0,16883.0,3.32917936]
[1673033639314,0.80574046,16884.0,16883.0,3.32917936]
[1673033639536,0.80543924,16884.0,16883.0,3.32917936]
[1673033640299,0.80543924,16884.0,16883.0,3.3295536]
[1673033640564,0.80543924,16884.0,16883.0,3.32917936]
[1673033640820,0.80574046,16884.0,16883.0,3.32917936]
[1673033641083,0.45015541,16884.0,16883.0,2.73686836]
[1673033641684,0.45015541,16884.0,16883.0,3.33074549]
[1673033644495,0.45015541,16884.0,16883.0,2.73677284]
[1673033644740,0.0061121,16884.0,16883.0,2.2526479]
[1673033645017,0.53969321,16884.0,16883.0,1.27689572]
[1673033645283,0.0061121,16884.0,16883.0,1.27689572]
[1673033645816,0.0061121,16884.0,16883.0,1.67689572]
[1673033646328,0.45034373,16884.0,16883.0,1.67689572]
[1673033647020,0.45034373,16884.0,16883.0,2.75489779]
[1673033647915,0.45034373,16884.0,16883.0,3.34720879]
[1673033648458,0.45034373,16884.0,16883.0,3.34877094]
[1673033649802,0.80573439,16884.0,16883.0,3.34877094]
[1673033651653,0.80573439,16884.0,16883.0,3.91331344]
[1673033658335,0.80573439,16884.0,16883.0,3.91175129]
[1673033661990,0.80573439,16884.0,16883.0,3.91323922]
[1673033666079,0.80573439,16884.0,16883.0,3.31936209]
[1673033667436,0.80573439,16884.0,16883.0,3.31925038]
[1673033667700,1.07265163,16884.0,16883.0,3.31776245]
[1673033667960,0.80573439,16884.0,16883.0,3.31783685]
[1673033668178,0.80573439,16884.0,16883.0,3.31776245]
[1673033668422,0.45034373,16884.0,16883.0,3.31776245]
[1673033668685,0.45034373,16884.0,16883.0,3.91163958]
[1673033668941,0.45034373,16884.0,16883.0,3.91305683]
[1673033670702,0.45034373,16884.0,16883.0,3.3191797]
[1673033677162,0.45064495,16884.0,16883.0,3.31776245]
[1673033677420,0.45064495,16884.0,16883.0,3.317904]
[1673033677421,0.0061121,16884.0,16883.0,3.317904]
[1673033679207,0.0061121,16884.0,16883.0,2.83377906]
[1673033679442,0.0061121,16884.0,16883.0,3.317904]
[1673033679918,0.0061121,16884.0,16883.0,3.31776245]
[1673033680441,0.0061121,16884.0,16883.0,3.317904]
[1673033680694,0.0061121,16884.0,16883.0,3.31776245]
[1673033681339,0.0061121,16884.0,16883.0,2.24132651]
[1673033681642,0.0061121,16884.0,16883.0,2.24281444]
[1673033681904,0.0061121,16884.0,16883.0,1.67827194]
[1673033682408,0.53969321,16884.0,16883.0,1.67678401]
[1673033682687,0.53999443,16884.0,16883.0,1.27678401]
[1673033682921,0.53969321,16884.0,16883.0,1.27678401]
[1673033683776,0.53999443,16884.0,16883.0,1.27678401]
[1673033684516,0.53969321,16884.0,16883.0,1.27678401]
[1673033684762,0.53999443,16884.0,16883.0,1.27678401]
[1673033685772,0.53999443,16884.0,16883.0,0.68447301]
[1673033686032,0.53969321,16884.0,16883.0,0.68447301]
[1673033686279,0.53999443,16884.0,16883.0,0.68447301]
[1673033686528,0.53969321,16884.0,16883.0,0.68447301]
[1673033687241,0.53999443,16884.0,16883.0,0.09216201]
[1673033688458,0.53969321,16884.0,16883.0,0.09231061]
[1673033688713,0.53969321,16884.0,16883.0,0.09205004]
[1673033689472,0.53969321,16884.0,16883.0,1.27838677]
[1673033689945,0.53969321,16884.0,16883.0,1.87069777]
[1673033690574,0.0061121,16884.0,16883.0,1.87069777]
[1673033691287,0.0061121,16884.0,16883.0,1.87054917]
[1673033691791,0.0061121,16884.0,16883.0,1.27667204]
[1673033692791,0.00641332,16884.0,16883.0,1.27667204]
[1673033693297,0.0061121,16884.0,16883.0,1.27667204]
[1673033693798,0.53999443,16884.0,16883.0,1.27667204]
[1673033694063,0.53969321,16884.0,16883.0,1.27667204]
[1673033694573,0.53969321,16884.0,16883.0,1.87054917]
[1673033694821,0.53969321,16884.0,16883.0,1.87069777]
[1673033694822,0.0061121,16884.0,16883.0,1.87069777]
[1673033695069,0.53969321,16884.0,16883.0,1.87069777]
[1673033695321,0.0061121,16884.0,16883.0,1.87069777]
[1673033695826,0.53999443,16884.0,16883.0,1.87054917]
[1673033696082,0.53969321,16884.0,16883.0,1.27667204]
[1673033696843,0.53969321,16884.0,16883.0,1.76094558]
[1673033697091,0.0061121,16884.0,16883.0,1.76094558]
[1673033697354,0.00309263,16884.0,16883.0,1.76079698]
[1673033697607,0.00309263,16884.0,16883.0,2.75467411]
[1673033697939,0.00309263,16884.0,16883.0,2.75482271]
[1673033698912,0.00309263,16884.0,16883.0,2.75467411]
[1673033701356,0.00309263,16884.0,16883.0,2.74901211]
[1673033702617,0.00309263,16884.0,16883.0,2.73970111]
[1673033703387,0.00309263,16884.0,16883.0,2.25557617]
[1673033703927,0.53667374,16884.0,16883.0,2.25557617]
[1673033704679,0.00309263,16884.0,16883.0,1.85557617]
[1673033704951,0.00309263,16884.0,16883.0,1.85572477]
[1673033705442,0.00309263,16884.0,16883.0,2.73984971]
[1673033708741,0.00302754,16884.0,16883.0,2.73984971]
[1673033710972,0.00332876,16884.0,16883.0,2.25587617]
[1673033711234,0.53660865,16884.0,16883.0,2.25587617]
[1673033713531,0.53690987,16884.0,16883.0,1.66199904]
[1673033713779,0.53660865,16884.0,16883.0,1.66199904]
[1673033714521,0.53660865,16884.0,16883.0,1.66214764]
[1673033715030,0.53660865,16884.0,16883.0,2.14627258]
[1673033715296,0.53660865,16884.0,16883.0,2.68017065]
[1673033715830,0.53660865,16884.0,16883.0,2.78992284]
[1673033716074,0.53660865,16884.0,16883.0,3.27404778]
[1673033716343,0.53660865,16884.0,16883.0,3.27389918]
[1673033716615,0.53660865,16884.0,16883.0,3.27404778]
[1673033716862,0.53690987,16884.0,16883.0,3.27389918]
[1673033717154,0.53660865,16884.0,16883.0,3.27389918]
[1673033718340,0.00302754,16884.0,16883.0,3.27389918]
[1673033718622,0.53660865,16884.0,16883.0,3.27389918]
[1673033720352,0.53660865,16884.0,16883.0,2.78977424]
[1673033722471,0.53660865,16884.0,16883.0,1.85587617]
[1673033724228,0.53660865,16884.0,16883.0,1.26199904]
[1673033724483,0.00302754,16884.0,16883.0,2.14612398]
[1673033724736,0.53660865,16884.0,16883.0,2.14612398]
[1673033726448,0.53660865,16884.0,16883.0,1.66199904]
[1673033728197,0.53660865,16884.0,16883.0,1.26199904]
[1673033729379,0.53690987,16884.0,16883.0,2.25581016]
[1673033729646,0.53660865,16884.0,16883.0,2.25581016]
[1673033729950,0.53660865,16884.0,16883.0,1.85581016]
[1673033730199,0.53660865,16884.0,16883.0,1.26193303]
[1673033730440,0.53689455,16884.0,16883.0,1.66193303]
[1673033730695,0.53659333,16884.0,16883.0,1.66193303]
[1673033731168,0.83273333,16884.0,16883.0,2.14605797]
[1673033731412,0.83273333,16884.0,16883.0,2.7399351]
[1673033732424,0.83303455,16884.0,16883.0,2.7399351]
[1673033732670,0.83273333,16884.0,16883.0,1.66193303]
[1673033732937,0.83273333,16884.0,16883.0,1.26193303]
[1673033733427,0.83273333,16884.0,16883.0,1.26208163]
[1673033733714,1.36623165,16884.0,16883.0,1.26208163]
[1673033733979,1.36653287,16884.0,16883.0,0.07731103]
[1673033734236,1.89973009,16884.0,16883.0,0.47731103]
[1673033734496,1.89973009,16884.0,16883.0,1.06977063]
[1673033734780,1.89973009,16884.0,16883.0,1.06962203]
[1673033735521,1.89973009,16884.0,16883.0,1.06977063]
[1673033736413,1.89973009,16884.0,16883.0,1.06962203]
[1673033736619,1.89973009,16884.0,16883.0,1.06977063]
[1673033736852,1.89973009,16884.0,16883.0,1.06962203]
[1673033737839,1.90003131,16884.0,16883.0,0.47731103]
[1673033740001,1.89973009,16884.0,16883.0,0.07731103]
[1673033740257,1.36623165,16884.0,16883.0,0.07731103]
[1673033740755,1.36653287,16884.0,16883.0,0.07731103]
[1673033741001,1.96614598,16884.0,16883.0,0.07731103]
[1673033741256,1.36653287,16884.0,16883.0,0.07731103]
[1673033741483,1.36623165,16884.0,16883.0,0.07745963]
[1673033741727,1.36615077,16884.0,16883.0,1.07133676]
[1673033742250,1.36615077,16884.0,16883.0,0.47745963]
[1673033743221,1.89951658,16884.0,16883.0,0.47745963]
[1673033743470,2.43287826,16884.0,16883.0,0.47745963]
[1673033743726,2.43287826,16884.0,16883.0,0.47731103]
[1673033744002,2.43287826,16884.0,16883.0,0.47745963]
[1673033744262,2.43287826,16884.0,16883.0,0.07731103]
[1673033744516,2.43287826,16884.0,16883.0,0.67118816]
[1673033745067,2.43287826,16884.0,16883.0,0.67133676]
[1673033745347,2.43317948,16884.0,16883.0,0.67118816]
[1673033745846,2.43287826,16884.0,16883.0,0.07731103]
[1673033746093,2.43287826,16884.0,16883.0,0.07745963]
[1673033747343,2.43287826,16884.0,16883.0,0.07731103]
[1673033747590,2.43287826,16884.0,16883.0,0.07745963]
[1673033748341,2.43287826,16884.0,16883.0,1.06977063]
[1673033748593,2.43317948,16884.0,16883.0,1.06962203]
[1673033748836,2.43287826,16884.0,16883.0,1.06962203]
[1673033749618,2.43317948,16884.0,16883.0,2.22910288]
[1673033749870,2.43287826,16884.0,16883.0,2.22910288]
[1673033750127,2.43287826,16884.0,16883.0,1.63679188]
[1673033750631,2.43287826,16884.0,16883.0,1.04291475]
[1673033751812,2.96624955,16884.0,16883.0,1.04291475]
[1673033752306,2.96624955,16884.0,16883.0,1.04306335]
[1673033752554,2.96624955,16884.0,16883.0,0.07745963]
[1673033752804,2.96655077,16884.0,16883.0,0.07731103]
[1673033753292,2.96624955,16884.0,16883.0,0.07731103]
[1673033753621,2.96624955,16884.0,16883.0,0.07745963]
[1673033754116,2.96624955,16884.0,16883.0,0.07731103]
[1673033754860,3.49960303,16884.0,16883.0,1.26364776]
[1673033756082,3.49960303,16884.0,16883.0,1.26349916]
[1673033758525,3.49990425,16884.0,16883.0,1.26349916]
[1673033759802,3.20376425,16884.0,16883.0,1.26349916]
[1673033760058,3.49960303,16884.0,16883.0,1.26364776]
[1673033760328,3.49960303,16884.0,16883.0,1.66364776]
[1673033762688,3.49960303,16884.0,16883.0,1.66349916]
[1673033763188,3.49960303,16884.0,16883.0,1.26349916]
[1673033763668,3.49990425,16884.0,16883.0,1.26349916]
[1673033764150,3.49990425,16884.0,16883.0,0.66962203]
[1673033764651,3.49990425,16884.0,16883.0,0.66953072]
[1673033764863,1.36611265,16884.0,16883.0,0.66967932]
[1673033765096,1.36581143,16884.0,16883.0,1.06953072]
[1673033766088,1.36581143,16884.0,16883.0,1.06967932]
[1673033766339,1.36581143,16884.0,16883.0,1.66355645]
[1673033766832,1.36581143,16884.0,16883.0,2.69014299]
[1673033767053,1.36581143,16884.0,16883.0,3.89209999]
[1673033768137,1.36581143,16884.0,16883.0,3.27745399]
[1673033768646,1.36581143,16884.0,16883.0,3.27730539]
[1673033769074,1.36581143,16884.0,16883.0,2.68499439]
[1673033769316,1.36581143,16884.0,16883.0,3.29464039]
[1673033769581,1.36581143,16884.0,16883.0,3.29478899]
[1673033770100,1.36581143,16884.0,16883.0,2.68514299]
[1673033770482,1.36611265,16884.0,16883.0,2.20086945]
[1673033770746,1.36581143,16884.0,16883.0,2.68499439]
[1673033770973,1.36581143,16884.0,16883.0,3.29464039]
[1673033771703,1.36581143,16884.0,16883.0,3.29478899]
[1673033771981,1.36581143,16884.0,16883.0,2.68514299]
[1673033772483,1.36581143,16884.0,16883.0,2.09126586]
[1673033772705,1.36611265,16884.0,16883.0,1.60699232]
[1673033772967,1.36581143,16884.0,16883.0,1.60699232]
[1673033773221,0.53631795,16884.0,16883.0,2.70076326]
[1673033773744,0.53631795,16884.0,16883.0,2.09111726]
[1673033774002,0.53631795,16884.0,16883.0,3.29464039]
[1673033774786,1.06967143,16884.0,16883.0,3.29464039]
[1673033775034,1.06967143,16884.0,16883.0,2.68499439]
[1673033775280,0.53631795,16884.0,16883.0,2.68499439]
[1673033775530,0.53631795,16884.0,16883.0,3.27730539]
[1673033775826,0.53631795,16884.0,16883.0,3.88695139]
[1673033776080,0.98075912,16884.0,16883.0,4.47926239]
[1673033776322,0.98075912,16884.0,16883.0,4.47941099]
[1673033776540,1.33631176,16884.0,16883.0,4.47941099]
[1673033777053,1.33630972,16884.0,16883.0,4.47941099]
[1673033779416,1.60283153,16884.0,16883.0,4.47941099]
[1673033780373,1.33630972,16884.0,16883.0,4.47941099]
[1673033780882,1.15838909,16884.0,16883.0,4.47941099]
[1673033781637,1.15838909,16884.0,16883.0,4.65541099]
[1673033783190,0.71397309,16884.0,16883.0,4.70231094]
[1673033783469,0.71397309,16884.0,16883.0,4.518186]
[1673033783705,0.53631795,16884.0,16883.0,4.518186]
[1673033783966,0.53631795,16884.0,16883.0,4.81761921]
[1673033784218,0.71397309,16884.0,16883.0,4.81761921]
[1673033784970,0.53631795,16884.0,16883.0,4.81761921]
[1673033785487,0.53631795,16884.0,16883.0,5.51761921]
[1673033786144,0.53631795,16884.0,16883.0,5.44702229]
[1673033787233,0.53631795,16884.0,16883.0,5.14702229]
[1673033787481,0.71397309,16884.0,16883.0,4.44702229]
[1673033789707,0.71397309,16884.0,16883.0,4.44695552]
[1673033791150,0.98049363,16884.0,16883.0,4.44695552]
[1673033791420,0.71397309,16884.0,16883.0,4.44695552]
[1673033791665,0.98049363,16884.0,16883.0,4.44695552]
[1673033792708,0.71397309,16884.0,16883.0,4.44695552]
[1673033792955,0.98049363,16884.0,16883.0,4.44695552]
[1673033794454,0.71397309,16884.0,16883.0,4.77224746]
[1673033794775,0.53631795,16884.0,16883.0,4.47224746]
[1673033794992,0.53631795,16884.0,16883.0,4.77224746]
[1673033795724,0.53631795,16884.0,16883.0,5.47224746]
[1673033798855,0.53631795,16884.0,16883.0,5.63896612]
[1673033799653,0.53631795,16884.0,16883.0,5.10419089]
[1673033801159,0.53531795,16884.0,16883.0,5.09470718]
[1673033801928,0.53831795,16884.0,16883.0,5.23270718]
[1673033804887,0.53831795,16884.0,16883.0,5.89165355]
[1673033805182,0.53831795,16884.0,16883.0,5.23270718]
[1673033805430,0.53831795,16884.0,16883.0,5.88218565]
[1673033805948,0.53831795,16884.0,16883.0,5.23270718]
[1673033807317,0.53831795,16884.0,16883.0,5.86939136]
[1673033807593,0.53831795,16884.0,16883.0,5.23270718]
[1673033807863,0.53831795,16884.0,16883.0,5.81807176]
[1673033812383,0.53831795,16884.0,16883.0,5.23270718]
[1673033812628,0.53831795,16884.0,16883.0,5.90608239]
[1673033813387,0.53831795,16884.0,16883.0,5.23270718]
[1673033816164,0.53831795,16884.0,16883.0,5.4102059]
[1673033816425,0.53637129,16884.0,16883.0,7.11860416]
[1673033816685,0.53637129,16884.0,16883.0,6.82047469]
[1673033816933,0.53637129,16884.0,16883.0,7.03168138]
[1673033817454,0.53637129,16884.0,16883.0,7.29711584]
[1673033817711,0.53637129,16884.0,16883.0,6.85204382]
[1673033818015,0.53637129,16884.0,16883.0,7.29711584]
[1673033818453,0.53637129,16884.0,16883.0,6.85204382]
[1673033823618,0.53637129,16884.0,16883.0,7.02895929]
[1673033824655,0.53637129,16884.0,16883.0,6.85204382]
[1673033825169,0.53637129,16884.0,16883.0,6.67391423]
[1673033825425,0.53637129,16884.0,16883.0,5.97391423]
[1673033826458,0.53637129,16884.0,16883.0,6.67391423]
[1673033826984,0.53637129,16884.0,16883.0,6.63827489]
[1673033827224,0.53637129,16884.0,16883.0,6.64087489]
[1673033827466,0.53637129,16884.0,16883.0,5.76541303]
[1673033829246,0.53637129,16884.0,16883.0,5.32397857]
[1673033831840,0.53637129,16884.0,16883.0,4.87132156]
[1673033832162,0.53637129,16884.0,16883.0,3.97907454]
[1673033832355,0.53637129,16884.0,16883.0,3.85355348]
[1673033833148,0.53637129,16884.0,16883.0,4.46319948]
[1673033833884,0.53637129,16884.0,16883.0,4.76319948]
[1673033834138,0.53637129,16884.0,16883.0,5.35707661]
[1673033834396,0.53637129,16884.0,16883.0,5.05707661]
[1673033834631,0.53637129,16884.0,16883.0,5.35707661]
[1673033835123,0.53637129,16884.0,16883.0,5.05707661]
[1673033835373,0.53637129,16884.0,16883.0,4.74743061]
[1673033835659,0.53637129,16884.0,16883.0,5.33974161]
[1673033837705,0.53637129,16884.0,16883.0,5.33966227]
[1673033838447,0.53637129,16884.0,16883.0,5.94930827]
[1673033839205,0.53637129,16884.0,16883.0,5.77330827]
[1673033839446,0.53637129,16884.0,16883.0,5.16366227]
[1673033842225,0.53637129,16884.0,16883.0,5.16359829]
[1673033842739,0.53637129,16884.0,16883.0,4.86359829]
[1673033843250,0.53637129,16884.0,16883.0,5.16366246]
[1673033846321,0.53637129,16884.0,16883.0,4.46366246]
[1673033847590,0.53637129,16884.0,16883.0,5.16366246]
[1673033847842,0.53637129,16884.0,16883.0,5.16359829]
[1673033848356,0.53637129,16884.0,16883.0,4.86366246]
[1673033848603,0.53637129,16884.0,16883.0,4.86359829]
[1673033849366,0.53637129,16884.0,16883.0,4.86366246]
[1673033850312,0.53637129,16884.0,16883.0,5.16366246]
[1673033850566,0.53637129,16884.0,16883.0,4.86366246]
[1673033851353,0.53637129,16884.0,16883.0,5.16366246]
[1673033855946,0.53637129,16884.0,16883.0,4.46366246]
[1673033856934,0.53637129,16884.0,16883.0,5.16366246]
[1673033857651,0.53916569,16884.0,16883.0,5.16366246]
[1673033858584,0.0057944,16884.0,16883.0,5.77330846]
[1673033860637,0.17754305,16886.0,16883.0,4.26808635]
[1673033860898,0.87931683,16887.0,16884.0,1.85297892]
[1673033860899,0.02529376,16887.0,16884.0,1.85297892]
[1673033861498,0.47142966,16889.0,16885.0,1.09626324]
[1673033861499,0.43657039,16889.0,16885.0,1.09626324]
[1673033861915,0.08148428,16889.0,16885.0,3.26365308]
[1673033861939,0.3508882,16890.0,16887.0,0.07588127]
[1673033861966,1.11518962,16894.0,16887.0,0.07588127]
[1673033861967,0.38507706,16895.0,16888.0,2.58306114]
[1673033862180,0.92288157,16896.0,16891.0,0.592022]
[1673033862450,0.42513134,16895.0,16894.0,0.6234]
[1673033862742,0.92288157,16896.0,16894.0,2.43603167]
[1673033863035,0.92288157,16896.0,16895.0,0.609646]
[1673033863269,0.92288157,16896.0,16892.0,0.74150603]
[1673033863270,1.27786206,16896.0,16892.0,0.74150603]
[1673033863533,0.53178959,16895.0,16891.0,0.592021]
[1673033863795,0.35452639,16894.0,16891.0,0.64262867]
[1673033864275,0.53052639,16894.0,16891.0,1.184052]
[1673033864283,0.59220428,16894.0,16891.0,1.75940927]
[1673033864531,0.67598418,16894.0,16892.0,1.26723242]
[1673033864812,0.23767789,16894.0,16893.0,0.609646]
[1673033865058,0.23767789,16894.0,16893.0,1.44792575]
[1673033865059,0.012,16894.0,16893.0,1.44792575]
[1673033865334,0.012,16894.0,16893.0,1.62392575]
[1673033865616,1.23886772,16898.0,16894.0,0.4]
[1673033865617,0.03294133,16898.0,16894.0,0.4]
[1673033865858,0.03294133,16898.0,16897.0,0.176]
[1673033866117,0.03294133,16898.0,16897.0,0.83625367]
[1673033866372,0.03294133,16898.0,16897.0,0.66025367]
[1673033866673,0.71751383,16898.0,16897.0,0.48733767]
[1673033866966,0.03294133,16898.0,16895.0,0.1748]
[1673033867243,0.26756027,16898.0,16894.0,1.897316]
[1673033867513,0.26756027,16898.0,16894.0,0.991908]
[1673033867514,0.23767789,16897.0,16894.0,0.991908]
[1673033867778,0.23797911,16896.0,16892.0,0.4]
[1673033868029,0.23767789,16895.0,16892.0,1.01479671]
[1673033868306,0.1749,16897.0,16894.0,0.50373]
[1673033868307,0.5548,16897.0,16894.0,0.50373]
[1673033868562,0.5548,16897.0,16896.0,0.56928641]
[1673033868825,0.29622122,16897.0,16896.0,0.63425874]
[1673033869105,0.62551122,16897.0,16895.0,0.4]
[1673033869394,0.02988238,16898.0,16894.0,1.14697627]
[1673033869673,0.61578924,16897.0,16894.0,0.22580767]
[1673033869944,0.61578924,16897.0,16894.0,0.5752]
[1673033869945,0.67862128,16896.0,16894.0,0.5752]
[1673033870210,0.32578238,16898.0,16894.0,0.77650939]
[1673033870462,0.62852136,16897.0,16895.0,0.59739579]
[1673033870760,0.70397184,16898.0,16895.0,0.65050725]
[1673033871026,0.70397184,16898.0,16895.0,0.05060767]
[1673033871027,0.00030122,16897.0,16895.0,0.05060767]
[1673033871290,0.62815561,16896.0,16893.0,2.31274395]
[1673033871560,0.62815561,16896.0,16894.0,0.00021208]
[1673033871561,0.23767789,16896.0,16894.0,0.00021208]
[1673033871820,0.5678851,16896.0,16894.0,0.00021208]
[1673033872290,0.5678851,16896.0,16895.0,0.6122825]